[Event "*** Titled Tuesday Blitz"]
[Site "Chess.com"]
[Date "2019.04.02"]
[Round "6"]
[White "riconaipe"]
[Black "sere99"]
[Result "1/2-1/2"]
[WhiteElo "2430"]
[BlackElo "2289"]
[TimeControl "180+2"]
[EndTime "15:20:48 PDT"]
[Termination "Game drawn by agreement"]

1. d4 {[%clk 0:03:01.9]} 1... d5 {[%clk 0:03:01.9]} 2. c4 {[%clk 0:02:59.5]}
2... e6 {[%clk 0:03:03.2]} 3. Nc3 {[%clk 0:02:56.3]} 3... Nf6 {[%clk 0:03:03.9]}
4. cxd5 {[%clk 0:02:54]} 4... exd5 {[%clk 0:03:04.5]} 5. Bg5 {[%clk 0:02:54.8]}
5... Be7 {[%clk 0:03:05.9]} 6. e3 {[%clk 0:02:55.6]} 6... c6 {[%clk 0:03:07.4]}
7. Bd3 {[%clk 0:02:56]} 7... Nbd7 {[%clk 0:03:08.9]} 8. Nge2 {[%clk 0:02:56.1]}
8... O-O {[%clk 0:03:05.7]} 9. O-O {[%clk 0:02:56.2]} 9... Re8 {[%clk
0:03:07.1]} 10. Qc2 {[%clk 0:02:56.6]} 10... h6 {[%clk 0:03:02]} 11. Bf4 {[%clk
0:02:54.7]} 11... Nf8 {[%clk 0:02:56.6]} 12. h3 {[%clk 0:02:46.5]} 12... a6
{[%clk 0:02:55.5]} 13. Be5 {[%clk 0:02:28.6]} 13... Ne6 {[%clk 0:02:50.8]} 14.
f4 {[%clk 0:02:23.4]} 14... Nd7 {[%clk 0:02:51.1]} 15. f5 {[%clk 0:02:24.3]}
15... Ng5 {[%clk 0:02:50.3]} 16. Bf4 {[%clk 0:02:19.9]} 16... Nf6 {[%clk
0:02:45.6]} 17. Ng3 {[%clk 0:02:19.1]} 17... Bd6 {[%clk 0:02:44.5]} 18. Rae1
{[%clk 0:02:19.6]} 18... Bxf4 {[%clk 0:02:36.7]} 19. Rxf4 {[%clk 0:02:06.7]}
19... Qd6 {[%clk 0:02:34.5]} 20. Qf2 {[%clk 0:02:07.6]} 20... Bd7 {[%clk
0:02:33.6]} 21. h4 {[%clk 0:02:00.6]} 21... Ngh7 {[%clk 0:02:31.4]} 22. e4
{[%clk 0:02:01.9]} 22... dxe4 {[%clk 0:02:30.1]} 23. Ngxe4 {[%clk 0:01:50.4]}
23... Nxe4 {[%clk 0:02:30.4]} 24. Nxe4 {[%clk 0:01:47.5]} 24... Qf8 {[%clk
0:02:13]} 25. Rf1 {[%clk 0:01:28.2]} 25... f6 {[%clk 0:02:09.5]} 26. Bc4+ {[%clk
0:01:26.4]} 26... Kh8 {[%clk 0:02:10.3]} 27. Nc5 {[%clk 0:01:27.9]} 27... Qd6
{[%clk 0:02:08.1]} 28. Qg3 {[%clk 0:01:10.6]} 28... b5 {[%clk 0:02:05.3]} 29.
Be6 {[%clk 0:01:06.1]} 29... Nf8 {[%clk 0:02:04.3]} 30. Bxd7 {[%clk 0:01:04.8]}
30... Nxd7 {[%clk 0:02:05]} 31. Ne6 {[%clk 0:01:04.4]} 31... Re7 {[%clk
0:02:04.9]} 32. Rg4 {[%clk 0:00:46.6]} 32... Qxg3 {[%clk 0:02:02.6]} 33. Rxg3
{[%clk 0:00:48.2]} 33... Nf8 {[%clk 0:02:04]} 34. Nxf8 {[%clk 0:00:45]} 34...
Rxf8 {[%clk 0:02:05.9]} 35. Rc1 {[%clk 0:00:45.8]} 35... Rd8 {[%clk 0:02:01.8]}
36. Rxc6 {[%clk 0:00:45.3]} 36... Rxd4 {[%clk 0:02:03.2]} 37. Rxa6 {[%clk
0:00:41.8]} 37... Rxh4 {[%clk 0:02:03.9]} 38. Rd3 {[%clk 0:00:27.3]} 38... Rf4
{[%clk 0:01:56.9]} 39. Rd5 {[%clk 0:00:24.5]} 39... b4 {[%clk 0:01:56.9]} 40.
Re6 {[%clk 0:00:18.7]} 40... Rc7 {[%clk 0:01:53.6]} 41. Kh2 {[%clk 0:00:14.1]}
41... h5 {[%clk 0:01:51.7]} 42. Kg3 {[%clk 0:00:14.2]} 42... Rg4+ {[%clk
0:01:52.8]} 43. Kf3 {[%clk 0:00:13.8]} 43... Kh7 {[%clk 0:01:52.4]} 44. Re4
{[%clk 0:00:11.6]} 44... Rc2 {[%clk 0:01:45.6]} 45. Rxg4 {[%clk 0:00:09.7]}
45... hxg4+ {[%clk 0:01:47.5]} 46. Kxg4 {[%clk 0:00:11.3]} 46... Rxg2+ {[%clk
0:01:47.9]} 47. Kf4 {[%clk 0:00:09.3]} 47... Rxb2 {[%clk 0:01:49.3]} 48. Rb5
{[%clk 0:00:10.1]} 48... Kh6 {[%clk 0:01:46.9]} 49. Kg4 {[%clk 0:00:11.6]} 49...
Rg2+ {[%clk 0:01:46.3]} 50. Kf3 {[%clk 0:00:10.8]} 50... Rb2 {[%clk 0:01:48.2]}
51. Kg4 {[%clk 0:00:11.4]} 51... Kh7 {[%clk 0:01:45.6]} 52. Rb8 {[%clk
0:00:11.2]} 52... Rg2+ {[%clk 0:01:44.8]} 53. Kf4 {[%clk 0:00:12.3]} 53... Rb2
{[%clk 0:01:46.7]} 54. Kg4 {[%clk 0:00:13.4]} 54... g6 {[%clk 0:01:44.5]} 55.
fxg6+ {[%clk 0:00:12.3]} 55... Kxg6 {[%clk 0:01:45.6]} 56. Kf4 {[%clk
0:00:13.7]} 56... Rf2+ {[%clk 0:01:45]} 57. Ke4 {[%clk 0:00:14.4]} 57... Rb2
{[%clk 0:01:46]} 58. Kf4 {[%clk 0:00:15.5]} 58... Kf7 {[%clk 0:01:46]} 59. Rb6
{[%clk 0:00:16.3]} 59... Ke7 {[%clk 0:01:46.5]} 60. Kf5 {[%clk 0:00:17.3]} 60...
Rf2+ {[%clk 0:01:43.9]} 61. Ke4 {[%clk 0:00:18.7]} 61... Re2+ {[%clk 0:01:44.1]}
62. Kf5 {[%clk 0:00:19.2]} 62... Rf2+ {[%clk 0:01:42.9]} 63. Ke4 {[%clk
0:00:20.4]} 63... f5+ {[%clk 0:01:43.3]} 64. Ke5 {[%clk 0:00:21.4]} 64... Rxa2
{[%clk 0:01:42.2]} 65. Rb7+ {[%clk 0:00:20.2]} 65... Kd8 {[%clk 0:01:41.4]} 66.
Rxb4 {[%clk 0:00:21.5]} 1/2-1/2

[Event "*** Titled Tuesday Blitz"]
[Site "Chess.com"]
[Date "2019.04.02"]
[Round "6"]
[White "santosalberto1987"]
[Black "SavelijTartakover"]
[Result "0-1"]
[WhiteElo "2418"]
[BlackElo "2617"]
[TimeControl "180+2"]
[EndTime "15:20:53 PDT"]
[Termination "SavelijTartakover won by resignation"]

1. e4 {[%clk 0:03:00]} 1... e6 {[%clk 0:03:00.1]} 2. d4 {[%clk 0:02:59.9]} 2...
d5 {[%clk 0:03:00.6]} 3. Nc3 {[%clk 0:03:00.8]} 3... Bb4 {[%clk 0:02:58.8]} 4.
e5 {[%clk 0:03:01.7]} 4... c5 {[%clk 0:02:58.9]} 5. a3 {[%clk 0:03:03.2]} 5...
Bxc3+ {[%clk 0:02:59.5]} 6. bxc3 {[%clk 0:03:05.1]} 6... Qa5 {[%clk 0:02:59.2]}
7. Bd2 {[%clk 0:03:01.1]} 7... Qa4 {[%clk 0:02:59.5]} 8. Nf3 {[%clk 0:02:59.9]}
8... b6 {[%clk 0:02:57.8]} 9. dxc5 {[%clk 0:02:52.7]} 9... bxc5 {[%clk
0:02:55.1]} 10. Bd3 {[%clk 0:02:53.7]} 10... Ba6 {[%clk 0:02:51.6]} 11. O-O
{[%clk 0:02:54.4]} 11... Ne7 {[%clk 0:02:50.7]} 12. Re1 {[%clk 0:02:53.9]} 12...
Nd7 {[%clk 0:02:45.5]} 13. Ng5 {[%clk 0:02:50.5]} 13... Bxd3 {[%clk 0:02:42.2]}
14. cxd3 {[%clk 0:02:51.4]} 14... Qxd1 {[%clk 0:02:42.8]} 15. Raxd1 {[%clk
0:02:53.3]} 15... Rb8 {[%clk 0:02:33.1]} 16. Rb1 {[%clk 0:02:53.9]} 16... O-O
{[%clk 0:02:32.8]} 17. f4 {[%clk 0:02:52.8]} 17... Rb6 {[%clk 0:02:27.9]} 18.
Rxb6 {[%clk 0:02:16.6]} 18... axb6 {[%clk 0:02:27.1]} 19. Rb1 {[%clk 0:02:18.1]}
19... Ra8 {[%clk 0:02:26.8]} 20. Bc1 {[%clk 0:02:19.4]} 20... Nc6 {[%clk
0:02:12.4]} 21. Nf3 {[%clk 0:02:18.6]} 21... Ra6 {[%clk 0:02:10.6]} 22. Kf2
{[%clk 0:02:18.4]} 22... Kf8 {[%clk 0:02:11.5]} 23. Ke3 {[%clk 0:02:16.6]} 23...
Ke7 {[%clk 0:02:11.9]} 24. Nd2 {[%clk 0:02:11.5]} 24... f6 {[%clk 0:02:00.2]}
25. exf6+ {[%clk 0:02:05.7]} 25... Nxf6 {[%clk 0:02:00.3]} 26. Nf3 {[%clk
0:02:05.9]} 26... d4+ {[%clk 0:01:48.5]} 27. cxd4 {[%clk 0:02:02.5]} 27... Nd5+
{[%clk 0:01:49.3]} 28. Kd2 {[%clk 0:01:48.1]} 28... cxd4 {[%clk 0:01:40.4]} 29.
g3 {[%clk 0:01:49]} 29... Nc3 {[%clk 0:01:16]} 30. Rb3 {[%clk 0:01:42.8]} 30...
Na4 {[%clk 0:01:15.1]} 31. Bb2 {[%clk 0:01:36.2]} 31... Nxb2 {[%clk 0:01:12.1]}
32. Rxb2 {[%clk 0:01:37.1]} 32... Kd6 {[%clk 0:01:10]} 33. Rb3 {[%clk
0:01:34.2]} 33... h6 {[%clk 0:01:08.1]} 34. Kc2 {[%clk 0:01:34.1]} 34... Kc5
{[%clk 0:01:08.2]} 35. Kb2 {[%clk 0:01:32.6]} 35... b5 {[%clk 0:01:06]} 36. Ne5
{[%clk 0:01:28.6]} 36... Nxe5 {[%clk 0:01:04.3]} 37. fxe5 {[%clk 0:01:30.5]}
37... h5 {[%clk 0:01:01.2]} 38. Ka2 {[%clk 0:01:24.2]} 38... Ra5 {[%clk
0:00:58.9]} 39. Rb1 {[%clk 0:01:21.9]} 39... Kd5 {[%clk 0:00:59.4]} 40. Kb3
{[%clk 0:01:21.3]} 40... Kxe5 {[%clk 0:00:57.1]} 41. Re1+ {[%clk 0:01:20.6]}
41... Kd5 {[%clk 0:00:56.5]} 42. Rf1 {[%clk 0:01:20.8]} 42... Ra7 {[%clk
0:00:54.3]} 43. Kb4 {[%clk 0:01:21.2]} 43... e5 {[%clk 0:00:45.2]} 44. Rf5
{[%clk 0:01:20]} 44... g6 {[%clk 0:00:41.4]} 45. Rf6 {[%clk 0:01:19.3]} 45... e4
{[%clk 0:00:40.6]} 46. dxe4+ {[%clk 0:01:15.2]} 46... Kxe4 {[%clk 0:00:41.6]}
47. Rxg6 {[%clk 0:01:14.6]} 47... Rd7 {[%clk 0:00:42.2]} 48. Re6+ {[%clk
0:01:12.9]} 48... Kf3 {[%clk 0:00:40]} 49. Kxb5 {[%clk 0:00:52.6]} 49... d3
{[%clk 0:00:40.5]} 50. Re1 {[%clk 0:00:52.5]} 50... d2 {[%clk 0:00:41.2]} 51.
Rd1 {[%clk 0:00:51.9]} 51... Ke2 {[%clk 0:00:41.7]} 52. Rxd2+ {[%clk 0:00:52.2]}
52... Rxd2 {[%clk 0:00:39.5]} 53. h3 {[%clk 0:00:51]} 53... Kf3 {[%clk
0:00:37.8]} 54. g4 {[%clk 0:00:51.7]} 54... h4 {[%clk 0:00:38.9]} 55. a4 {[%clk
0:00:47.7]} 55... Kg3 {[%clk 0:00:39.3]} 56. a5 {[%clk 0:00:46.2]} 56... Kxh3
{[%clk 0:00:39]} 57. g5 {[%clk 0:00:46.2]} 57... Rd5+ {[%clk 0:00:39.5]} 58. Kb6
{[%clk 0:00:47.3]} 58... Rxg5 {[%clk 0:00:40]} 0-1

[Event "*** Titled Tuesday Blitz"]
[Site "Chess.com"]
[Date "2019.04.02"]
[Round "6"]
[White "Vegan4future"]
[Black "Margency"]
[Result "0-1"]
[WhiteElo "2498"]
[BlackElo "2702"]
[TimeControl "180+2"]
[EndTime "15:21:04 PDT"]
[Termination "Margency won by checkmate"]

1. Nc3 {[%clk 0:03:01.9]} 1... d5 {[%clk 0:03:00.3]} 2. e4 {[%clk 0:03:01.7]}
2... d4 {[%clk 0:02:57.9]} 3. Nce2 {[%clk 0:03:01.2]} 3... c5 {[%clk 0:02:56.6]}
4. Ng3 {[%clk 0:03:02.6]} 4... Nc6 {[%clk 0:02:57.4]} 5. Nf3 {[%clk 0:02:59.6]}
5... g6 {[%clk 0:02:58.2]} 6. Bc4 {[%clk 0:03:00.3]} 6... Bg7 {[%clk 0:02:58.9]}
7. O-O {[%clk 0:03:01.8]} 7... Nf6 {[%clk 0:02:54.3]} 8. d3 {[%clk 0:03:03.2]}
8... O-O {[%clk 0:02:54.9]} 9. Bg5 {[%clk 0:03:03.2]} 9... Bg4 {[%clk
0:02:51.2]} 10. Bb3 {[%clk 0:02:51.6]} 10... Ne5 {[%clk 0:02:49.3]} 11. Bf4
{[%clk 0:02:43.8]} 11... Nfd7 {[%clk 0:02:48.3]} 12. c4 {[%clk 0:02:31.5]} 12...
e6 {[%clk 0:02:42.8]} 13. Qe2 {[%clk 0:02:11.5]} 13... Qf6 {[%clk 0:02:42.3]}
14. Bxe5 {[%clk 0:02:12.2]} 14... Nxe5 {[%clk 0:02:43.1]} 15. Bd1 {[%clk
0:02:13.7]} 15... Bxf3 {[%clk 0:02:38.2]} 16. gxf3 {[%clk 0:02:14.2]} 16... Bh6
{[%clk 0:02:39.6]} 17. Kg2 {[%clk 0:02:08]} 17... Rab8 {[%clk 0:02:33]} 18. a4
{[%clk 0:02:05.5]} 18... b6 {[%clk 0:02:31.9]} 19. Rh1 {[%clk 0:02:03.6]} 19...
Qh4 {[%clk 0:02:32.1]} 20. Qc2 {[%clk 0:01:58.9]} 20... a6 {[%clk 0:02:26.9]}
21. Be2 {[%clk 0:01:59.5]} 21... f5 {[%clk 0:02:25.9]} 22. Rhb1 {[%clk
0:01:34.5]} 22... a5 {[%clk 0:02:23.8]} 23. h3 {[%clk 0:01:13.5]} 23... Rb7
{[%clk 0:02:22.8]} 24. Rh1 {[%clk 0:01:11.1]} 24... Bf4 {[%clk 0:02:17.1]} 25.
Rag1 {[%clk 0:01:11.5]} 25... Kh8 {[%clk 0:02:17.8]} 26. Kf1 {[%clk 0:01:11.3]}
26... Nf7 {[%clk 0:02:10.8]} 27. Ke1 {[%clk 0:01:05.7]} 27... Ng5 {[%clk
0:02:09.7]} 28. Rg2 {[%clk 0:01:04.3]} 28... Rbf7 {[%clk 0:02:09.9]} 29. Qd1
{[%clk 0:00:57]} 29... Rf6 {[%clk 0:02:04.2]} 30. Rgg1 {[%clk 0:00:55.7]} 30...
Bc7 {[%clk 0:02:03.7]} 31. Rg2 {[%clk 0:00:55.3]} 31... fxe4 {[%clk 0:02:02.3]}
32. Nxe4 {[%clk 0:00:56.1]} 32... Nxf3+ {[%clk 0:01:55.3]} 33. Bxf3 {[%clk
0:00:58]} 33... Rxf3 {[%clk 0:01:56.5]} 34. Kd2 {[%clk 0:00:57.1]} 34... R8f4
{[%clk 0:01:52.7]} 35. Qe2 {[%clk 0:00:53.5]} 35... Qh5 {[%clk 0:01:49]} 36. Kc1
{[%clk 0:00:48.4]} 36... Qf5 {[%clk 0:01:49.2]} 37. Kb1 {[%clk 0:00:46.3]} 37...
Rxd3 {[%clk 0:01:46.1]} 38. Qxd3 {[%clk 0:00:41.8]} 38... Rxe4 {[%clk
0:01:47.4]} 39. Ka2 {[%clk 0:00:40.9]} 39... Rf4 {[%clk 0:01:41.7]} 40. Qb3
{[%clk 0:00:37.3]} 40... e5 {[%clk 0:01:39.9]} 41. Qb5 {[%clk 0:00:36.6]} 41...
e4 {[%clk 0:01:38.3]} 42. h4 {[%clk 0:00:35.4]} 42... Rxf2 {[%clk 0:01:20.3]}
43. Rxf2 {[%clk 0:00:36]} 43... Qxf2 {[%clk 0:01:21.4]} 44. Qe8+ {[%clk
0:00:37.3]} 44... Kg7 {[%clk 0:01:22.3]} 45. Qxe4 {[%clk 0:00:39]} 45... Qf7
{[%clk 0:01:16.6]} 46. Qe2 {[%clk 0:00:36.6]} 46... h5 {[%clk 0:01:14.1]} 47.
Rf1 {[%clk 0:00:37.3]} 47... Qd7 {[%clk 0:01:11.3]} 48. Qd3 {[%clk 0:00:31.7]}
48... Qxa4+ {[%clk 0:01:11.7]} 49. Kb1 {[%clk 0:00:31.9]} 49... Qd7 {[%clk
0:01:10.7]} 50. Rg1 {[%clk 0:00:31.7]} 50... Qe6 {[%clk 0:01:11.6]} 51. Ka2
{[%clk 0:00:27.4]} 51... b5 {[%clk 0:01:11.7]} 52. b3 {[%clk 0:00:27.6]} 52...
bxc4 {[%clk 0:01:13]} 53. bxc4 {[%clk 0:00:29.5]} 53... Bd8 {[%clk 0:01:12.4]}
54. Ka3 {[%clk 0:00:29]} 54... Bxh4 {[%clk 0:01:13.3]} 55. Ka4 {[%clk
0:00:24.3]} 55... Qc6+ {[%clk 0:01:12.5]} 56. Ka3 {[%clk 0:00:24.7]} 56... a4
{[%clk 0:01:12.2]} 57. Rf1 {[%clk 0:00:20.2]} 57... Bf6 {[%clk 0:01:07.6]} 58.
Qg3 {[%clk 0:00:16.5]} 58... Qb6 {[%clk 0:01:02.3]} 59. Rg1 {[%clk 0:00:13.5]}
59... Qb4+ {[%clk 0:01:01.6]} 60. Ka2 {[%clk 0:00:14.2]} 60... Qxc4+ {[%clk
0:01:02.9]} 61. Ka3 {[%clk 0:00:14.3]} 61... Qc2 {[%clk 0:01:00.2]} 62. Rg2
{[%clk 0:00:12]} 62... Qb1 {[%clk 0:00:56.5]} 63. Kxa4 {[%clk 0:00:11.4]} 63...
Qb4# {[%clk 0:00:57.2]} 0-1

[Event "*** Titled Tuesday Blitz"]
[Site "Chess.com"]
[Date "2019.04.02"]
[Round "6"]
[White "Alexander_Donchenko"]
[Black "Gabix_94"]
[Result "0-1"]
[WhiteElo "2817"]
[BlackElo "2591"]
[TimeControl "180+2"]
[EndTime "15:21:09 PDT"]
[Termination "Gabix_94 won by resignation"]

1. e4 {[%clk 0:03:01.9]} 1... c5 {[%clk 0:02:59.2]} 2. Nf3 {[%clk 0:03:02.7]}
2... e6 {[%clk 0:03:00.7]} 3. b3 {[%clk 0:03:03.1]} 3... a6 {[%clk 0:03:01.2]}
4. Bb2 {[%clk 0:03:03.9]} 4... Nc6 {[%clk 0:03:02.6]} 5. Bd3 {[%clk 0:03:04.4]}
5... Nf6 {[%clk 0:02:57.1]} 6. O-O {[%clk 0:03:05.4]} 6... Be7 {[%clk
0:02:55.2]} 7. Re1 {[%clk 0:03:02.4]} 7... O-O {[%clk 0:02:50.8]} 8. Bf1 {[%clk
0:03:00.1]} 8... d5 {[%clk 0:02:50.5]} 9. e5 {[%clk 0:03:01.1]} 9... Nd7 {[%clk
0:02:50.5]} 10. c3 {[%clk 0:03:01.8]} 10... d4 {[%clk 0:02:38]} 11. Na3 {[%clk
0:02:59]} 11... b5 {[%clk 0:02:35.6]} 12. cxd4 {[%clk 0:02:56.2]} 12... cxd4
{[%clk 0:02:32.9]} 13. Nc2 {[%clk 0:02:57]} 13... Bb7 {[%clk 0:02:26.6]} 14.
Ncxd4 {[%clk 0:02:53.9]} 14... Nxd4 {[%clk 0:02:18.5]} 15. Bxd4 {[%clk
0:02:55.1]} 15... Nc5 {[%clk 0:02:16.3]} 16. Bc3 {[%clk 0:02:52]} 16... Nd3
{[%clk 0:02:07.5]} 17. Re3 {[%clk 0:02:50.8]} 17... Nf4 {[%clk 0:02:07.7]} 18.
Bb2 {[%clk 0:02:46.2]} 18... Rc8 {[%clk 0:02:05.8]} 19. d4 {[%clk 0:02:43.5]}
19... Qd5 {[%clk 0:02:03.9]} 20. g3 {[%clk 0:02:40.1]} 20... Ng6 {[%clk
0:02:00.1]} 21. Bg2 {[%clk 0:02:40.6]} 21... Rfd8 {[%clk 0:01:55.8]} 22. h4
{[%clk 0:02:40.6]} 22... Qd7 {[%clk 0:01:53.1]} 23. h5 {[%clk 0:02:39.1]} 23...
Nf8 {[%clk 0:01:53.8]} 24. h6 {[%clk 0:02:39.8]} 24... gxh6 {[%clk 0:01:50.4]}
25. Qd2 {[%clk 0:02:30.2]} 25... Ng6 {[%clk 0:01:51.3]} 26. Re2 {[%clk
0:02:20.8]} 26... h5 {[%clk 0:01:45.5]} 27. Qh6 {[%clk 0:02:16.2]} 27... h4
{[%clk 0:01:42.8]} 28. Kh2 {[%clk 0:01:56.8]} 28... Kh8 {[%clk 0:01:37.1]} 29.
Rh1 {[%clk 0:01:54.2]} 29... Rg8 {[%clk 0:01:36.4]} 30. Kg1 {[%clk 0:01:50.4]}
30... Rg7 {[%clk 0:01:29.6]} 31. Bc1 {[%clk 0:01:37.1]} 31... Rc3 {[%clk
0:00:43.2]} 32. Be3 {[%clk 0:01:32.4]} 32... Bd5 {[%clk 0:00:41.8]} 33. Ng5
{[%clk 0:01:25.6]} 33... Bxg2 {[%clk 0:00:39.5]} 34. Kxg2 {[%clk 0:01:25.1]}
34... Qc6+ {[%clk 0:00:34.7]} 35. f3 {[%clk 0:01:08.6]} 35... Kg8 {[%clk
0:00:32.2]} 36. Ne4 {[%clk 0:01:06.9]} 36... Rc2 {[%clk 0:00:27.7]} 37. Bd2
{[%clk 0:00:51.1]} 37... Kh8 {[%clk 0:00:26.3]} 38. a4 {[%clk 0:00:42.2]} 38...
b4 {[%clk 0:00:25.7]} 39. g4 {[%clk 0:00:36.4]} 39... a5 {[%clk 0:00:25.7]} 40.
Rf2 {[%clk 0:00:31.1]} 40... Rb2 {[%clk 0:00:22.6]} 41. Rc1 {[%clk 0:00:30.2]}
41... Rc2 {[%clk 0:00:18.7]} 42. Rxc2 {[%clk 0:00:29.2]} 42... Qxc2 {[%clk
0:00:20.6]} 43. Bxb4 {[%clk 0:00:27.8]} 43... Qc7 {[%clk 0:00:18.4]} 44. Bxe7
{[%clk 0:00:23.7]} 44... Qxe7 {[%clk 0:00:20.3]} 45. Rc2 {[%clk 0:00:23.9]}
45... Qd8 {[%clk 0:00:20.3]} 46. Nf6 {[%clk 0:00:21.4]} 46... h3+ {[%clk
0:00:20.2]} 47. Kxh3 {[%clk 0:00:21.5]} 47... Qb8 {[%clk 0:00:20.6]} 48. Kg3
{[%clk 0:00:20.1]} 48... Ne7 {[%clk 0:00:21.2]} 49. Rh2 {[%clk 0:00:19.9]} 49...
Nf5+ {[%clk 0:00:22.3]} 50. Kf4 {[%clk 0:00:20.1]} 50... Nxh6 {[%clk 0:00:24.2]}
51. Rxh6 {[%clk 0:00:21.4]} 51... Qxb3 {[%clk 0:00:24.6]} 52. Rh2 {[%clk
0:00:19.8]} 52... Qxa4 {[%clk 0:00:24.2]} 53. Ke3 {[%clk 0:00:17.8]} 53... Qa3+
{[%clk 0:00:24.9]} 54. Ke4 {[%clk 0:00:18.4]} 54... Qc3 {[%clk 0:00:24.9]} 55.
Ra2 {[%clk 0:00:17.8]} 55... a4 {[%clk 0:00:26.2]} 56. Nd7 {[%clk 0:00:13.3]}
56... f5+ {[%clk 0:00:26]} 0-1

[Event "*** Titled Tuesday Blitz"]
[Site "Chess.com"]
[Date "2019.04.02"]
[Round "6"]
[White "Hikaru"]
[Black "KenanGarayev"]
[Result "1-0"]
[WhiteElo "3176"]
[BlackElo "2759"]
[TimeControl "180+2"]
[EndTime "15:21:11 PDT"]
[Termination "Hikaru won by resignation"]

1. Nf3 {[%clk 0:03:01.9]} 1... Nf6 {[%clk 0:02:59.4]} 2. b3 {[%clk 0:03:02.8]}
2... b6 {[%clk 0:02:59]} 3. Bb2 {[%clk 0:03:03.8]} 3... Bb7 {[%clk 0:03:00.9]}
4. c4 {[%clk 0:03:05.1]} 4... c5 {[%clk 0:03:00.4]} 5. d4 {[%clk 0:03:06.3]}
5... cxd4 {[%clk 0:02:57.2]} 6. Qxd4 {[%clk 0:03:08.2]} 6... e6 {[%clk
0:02:56.6]} 7. Nc3 {[%clk 0:03:04.7]} 7... Nc6 {[%clk 0:02:56]} 8. Qd2 {[%clk
0:03:02.5]} 8... Bb4 {[%clk 0:02:53.3]} 9. Qc2 {[%clk 0:03:03.8]} 9... d5 {[%clk
0:02:51.3]} 10. a3 {[%clk 0:03:04.8]} 10... d4 {[%clk 0:02:45.6]} 11. axb4
{[%clk 0:03:02.9]} 11... Nxb4 {[%clk 0:02:47.5]} 12. Qc1 {[%clk 0:03:01.5]}
12... dxc3 {[%clk 0:02:49.4]} 13. Bxc3 {[%clk 0:03:03.3]} 13... Qe7 {[%clk
0:02:45]} 14. e3 {[%clk 0:03:01.2]} 14... O-O {[%clk 0:02:43.2]} 15. Be2 {[%clk
0:03:00.4]} 15... Ne4 {[%clk 0:02:43.3]} 16. O-O {[%clk 0:02:57.4]} 16... Nxc3
{[%clk 0:02:43.9]} 17. Qxc3 {[%clk 0:02:59.3]} 17... Rfd8 {[%clk 0:02:43.8]} 18.
Nd4 {[%clk 0:02:56.2]} 18... a5 {[%clk 0:02:39.3]} 19. Rfd1 {[%clk 0:02:56.6]}
19... Qg5 {[%clk 0:02:34.8]} 20. Nf3 {[%clk 0:02:49.1]} 20... Qf6 {[%clk
0:02:24.8]} 21. Qxf6 {[%clk 0:02:46.8]} 21... gxf6 {[%clk 0:02:26.7]} 22. Nd4
{[%clk 0:02:47.3]} 22... Na6 {[%clk 0:02:20.1]} 23. Rab1 {[%clk 0:02:41.4]}
23... Nc5 {[%clk 0:02:11.8]} 24. b4 {[%clk 0:02:42]} 24... Ne4 {[%clk
0:02:09.1]} 25. Rdc1 {[%clk 0:01:55.7]} 25... e5 {[%clk 0:01:53]} 26. Nf5 {[%clk
0:01:53.2]} 26... Rd2 {[%clk 0:01:46.3]} 27. Bf3 {[%clk 0:01:48.4]} 27... axb4
{[%clk 0:01:45.6]} 28. Rxb4 {[%clk 0:01:48.8]} 28... Nc3 {[%clk 0:01:43.1]} 29.
Rf1 {[%clk 0:01:22.2]} 29... Bxf3 {[%clk 0:01:37.8]} 30. gxf3 {[%clk 0:01:24.1]}
30... e4 {[%clk 0:01:27.2]} 31. Kg2 {[%clk 0:01:21.3]} 31... Ra5 {[%clk
0:01:23.3]} 32. Ng3 {[%clk 0:01:17.4]} 32... Nd1 {[%clk 0:01:14.8]} 33. Rb3
{[%clk 0:01:07.9]} 33... Rb2 {[%clk 0:01:05.9]} 34. Nxe4 {[%clk 0:00:48.8]}
34... Rxb3 {[%clk 0:01:01]} 35. Rxd1 {[%clk 0:00:49.9]} 35... Rb4 {[%clk
0:00:54]} 36. Nxf6+ {[%clk 0:00:38.2]} 36... Kg7 {[%clk 0:00:54.6]} 37. Nd7
{[%clk 0:00:39.8]} 37... Rxc4 {[%clk 0:00:48.8]} 38. Nxb6 {[%clk 0:00:40.6]}
38... Rc2 {[%clk 0:00:47.9]} 39. Nd5 {[%clk 0:00:40.3]} 39... Raa2 {[%clk
0:00:45.7]} 40. Rf1 {[%clk 0:00:41]} 40... Rab2 {[%clk 0:00:42.3]} 41. Kg3
{[%clk 0:00:41.9]} 41... Rc5 {[%clk 0:00:39.7]} 42. e4 {[%clk 0:00:41.7]} 42...
Rc6 {[%clk 0:00:37.7]} 43. Ne7 {[%clk 0:00:39.3]} 43... Rcb6 {[%clk 0:00:37.2]}
44. Rc1 {[%clk 0:00:37.5]} 44... Re6 {[%clk 0:00:33.6]} 45. Nf5+ {[%clk
0:00:38.1]} 45... Kf6 {[%clk 0:00:30.9]} 46. h4 {[%clk 0:00:36.1]} 46... Rb8
{[%clk 0:00:25.9]} 47. Kf4 {[%clk 0:00:36.7]} 47... Ra8 {[%clk 0:00:23.1]} 48.
Rc7 {[%clk 0:00:34.7]} 48... h5 {[%clk 0:00:20]} 49. Rc5 {[%clk 0:00:28.3]}
49... Kg6 {[%clk 0:00:20.8]} 50. Ne3 {[%clk 0:00:25.9]} 50... Rf6+ {[%clk
0:00:19.6]} 51. Kg3 {[%clk 0:00:27]} 51... Re6 {[%clk 0:00:19.9]} 52. Rg5+
{[%clk 0:00:27.5]} 52... Kh7 {[%clk 0:00:19.5]} 53. Rxh5+ {[%clk 0:00:28.4]}
53... Rh6 {[%clk 0:00:21]} 54. Rf5 {[%clk 0:00:27.8]} 54... Rg8+ {[%clk
0:00:20.1]} 55. Ng4 {[%clk 0:00:28.5]} 55... Ra6 {[%clk 0:00:17.3]} 56. Rxf7+
{[%clk 0:00:29]} 56... Kh8 {[%clk 0:00:19.2]} 57. h5 {[%clk 0:00:28.3]} 57...
Ra1 {[%clk 0:00:19.5]} 58. Kf4 {[%clk 0:00:29.6]} 58... Rh1 {[%clk 0:00:19.7]}
59. Nf6 {[%clk 0:00:28.3]} 59... Rh4+ {[%clk 0:00:20.7]} 60. Ke3 {[%clk
0:00:29.2]} 1-0